[Event "SVK-ch Open 2018"]
[Site "Banska Stiavnica"]
[Date "2018.07.15"]
[Round "9"]
[White "Kucera, Michal"]
[Black "Volcko, Richard"]
[Result "0-1"]
[ECO "C78"]
[WhiteElo "1921"]
[BlackElo "2068"]
[Annotator "NA"]
[PlyCount "94"]
[EventDate "2018.07.07"]
[EventType "swiss"]
[EventCountry "SVK"]
[SourceTitle "playchess.com"]
[Source "ChessBase"]
[SourceQuality "1"]
[TimeControl "40/5400+30:1800+30"]

1. e4 {[%emt 0:04:29]} e5 {[%emt 0:00:00]} 2. Nf3 {[%emt 0:00:11]} Nc6 {[%emt 0:00:00]} 3. Bb5 {[%emt 0:00:07]} a6 {[%emt 0:00:00]} 4. Ba4 {[%emt 0:00:05]} Nf6 {[%emt 0:00:00]} 5. O-O {[%emt 0:00:12]} Bc5 {[%emt 0:00:00]} 6. c3 {[%emt 0:00:25]} b5 {[%emt 0:00:02]} 7. Bc2 {[%emt 0:03:10]} d5 {[%emt 0:00:56] C78: Ruy Lopez: Archangelsk and Möller Defences} 8. d4 {[%emt 0:18:57]} (8. a4 dxe4 9. axb5 exf3 10. Qxf3 e4 11. Bxe4 Ne5 12. Qe2 O-O 13. d4 Bg4 14. Qc2 Nxe4 15. Qxe4 {½-½ (51) Pichot,A (2552)-Yu,Y (2760) chess.com INT 2018}) 8... dxe4 {[%emt 0:00:35]} 9. Ng5 {[%emt 0:01:15]} exd4 {[%emt 0:24:37]} 10. Nxe4 {[%emt 0:05:22]} Nxe4 {[%emt 0:32:08]} 11. Bxe4 {[%emt 0:06:09]} Bb7 {[%emt 0:01:24]} 12. Re1 {[%emt 0:07:48]} Kf8 {[%emt 0:02:25]} 13. cxd4 $146 {[%emt 0:13:33]} ({Predecessor:} 13. Qh5 Bb6 14. a4 Na5 15. Bxb7 Nxb7 16. axb5 axb5 17. Rxa8 Qxa8 {1-0 (33) Lopez Perdomo,J (2150)-Vlashki,N (2262) Benidorm 2009}) 13... Bxd4 {[%emt 0:06:11]} 14. Qf3 {[%emt 0:13:10]} Qf6 {[%emt 0:01:48]} 15. Nc3 {[%emt 0:02:10]} Qxf3 {[%emt 0:09:42]} 16. Bxf3 {[%emt 0:00:08]} b4 {[%emt 0:03:24]} 17. Nd1 {[%emt 0:03:07]} Na5 {[%emt 0:04:32]} 18. Bd2 {[%emt 0:03:22]} c5 {[%emt 0:02:20]} 19. Bf4 {[%emt 0:02:47]} Bxf3 {[%emt 0:00:53]} 20. gxf3 {[%emt 0:00:01]} f6 {[%emt 0:04:31]} 21. Rc1 {[%emt 0:00:41]} Kf7 {[%emt 0:00:39]} 22. Bc7 {[%emt 0:02:15]} Nb7 {[%emt 0:01:17]} 23. b3 {[%emt 0:01:15]} Rhe8 {[%emt 0:00:59]} 24. Ne3 {[%emt 0:02:12]} Re7 {[%emt 0:00:01]} 25. Nd5 {[%emt 0:00:11]} Rxe1+ {[%emt 0:01:12]} 26. Rxe1 {[%emt 0:00:06]} Re8 {[%emt 0:00:15]} 27. Rxe8 {[%emt 0:01:07]} Kxe8 {[%emt 0:00:04]} 28. Ne3 {[%emt 0:00:23]} Kd7 {[%emt 0:00:27]} 29. Bb8 {[%emt 0:01:02]} Nd6 {[%emt 0:01:35]} 30. Bxd6 {[%emt 0:00:44]} Kxd6 {[%emt 0:00:05]} 31. Nf5+ {[%emt 0:00:02]} Kd5 {[%emt 0:00:25]} 32. Nxg7 {[%emt 0:02:58]} c4 {[%emt 0:00:29]} 33. Kf1 {[%emt 0:00:24]} c3 {[%emt 0:00:11]} 34. Ke2 {[%emt 0:00:08]} Bxf2 {[%emt 0:00:54]} 35. Kd3 {[%emt 0:01:02]} Bg1 {[%emt 0:01:56]} 36. Ne8 {[%emt 0:02:17]} Ke5 {[%emt 0:00:23]} 37. Nc7 {[%emt 0:01:18]} a5 {[%emt 0:00:13]} 38. h3 {[%emt 0:00:09]} Bb6 {[%emt 0:00:58]} 39. f4+ {[%emt 0:01:18]} Kf5 {[%emt 0:00:58]} 40. Nd5 {[%emt 0:00:38]} Bc5 {[%emt 0:00:20]} 41. Kc2 $19 {[%emt 0:32:34]} Ba7 {[%emt 0:31:10]} 42. a3 {[%emt 0:00:00]} Bc5 {[%emt 0:00:00]} 43. axb4 {[%emt 0:00:00]} axb4 {[%emt 0:00:00]} 44. Kd3 {[%emt 0:00:00]} h5 {[%emt 0:00:00]} 45. Ke2 {[%emt 0:00:00]} h4 {[%emt 0:00:00]} 46. Kd3 {[%emt 0:00:00]} Bd6 {[%emt 0:00:00]} 47. Kc2 {[%emt 0:00:00]} Ke6 {[%emt 0:00:00]} 0-1

[Event "SVK-ch Open 2018"]
[Site "Banska Stiavnica"]
[Date "2018.07.15"]
[Round "9"]
[White "Gresova, Zuzana"]
[Black "Panko, Radoslav"]
[Result "1/2-1/2"]
[ECO "C05"]
[WhiteElo "1920"]
[BlackElo "2049"]
[Annotator "NA"]
[PlyCount "157"]
[EventDate "2018.07.07"]
[EventType "swiss"]
[EventCountry "SVK"]
[SourceTitle "playchess.com"]
[Source "ChessBase"]
[SourceQuality "1"]
[TimeControl "40/5400+30:1800+30"]

1. e4 {[%emt 0:00:00]} e6 {[%emt 0:02:37]} 2. d4 {[%emt 0:00:00]} d5 {[%emt 0:01:02]} 3. Nd2 {[%emt 0:00:00]} Nf6 {[%emt 0:00:04]} 4. e5 {[%emt 0:00:10]} Nfd7 {[%emt 0:00:03]} 5. f4 {[%emt 0:00:17]} c5 {[%emt 0:00:00]} 6. Ngf3 {[%emt 0:00:40]} Nc6 {[%emt 0:00:02]} 7. Nb3 {[%emt 0:02:12]} f6 {[%emt 0:01:05]} 8. Bb5 {[%emt 0:16:00]} fxe5 {[%emt 0:08:27]} 9. fxe5 {[%emt 0:02:20]} Be7 {[%emt 0:13:40]} 10. O-O {[%emt 0:09:53]} O-O {[%emt 0:00:19]} 11. c3 {[%emt 0:14:56]} c4 {[%emt 0:05:27]} 12. Nbd2 {[%emt 0:02:37]} Qa5 {[%emt 0:05:02]} 13. a4 {[%emt 0:08:31]} Ndb8 {[%emt 0:05:47]} 14. Qc2 {[%emt 0:07:32]} a6 {[%emt 0:00:50]} 15. Bxc6 {[%emt 0:09:00]} Nxc6 {[%emt 0:00:03]} 16. b4 {[%emt 0:01:02]} Qd8 {[%emt 0:01:25]} 17. h3 {[%emt 0:04:51]} Bd7 {[%emt 0:00:11]} 18. Nh2 {[%emt 0:01:19]} Rxf1+ {[%emt 0:00:37]} 19. Ndxf1 {[%emt 0:01:08]} Be8 {[%emt 0:00:12]} 20. Be3 {[%emt 0:01:31]} Bg6 {[%emt 0:01:03]} 21. Qd2 {[%emt 0:00:45]} Qe8 {[%emt 0:06:19]} 22. Ng3 {[%emt 0:01:10]} Bd3 {[%emt 0:00:45]} 23. Ne2 {[%emt 0:01:39]} Qg6 {[%emt 0:01:19]} 24. Nf4 {[%emt 0:01:26]} Qf5 {[%emt 0:07:47]} 25. Nxd3 {[%emt 0:01:00]} cxd3 {[%emt 0:00:42]} 26. Rf1 {[%emt 0:01:11]} Qg6 {[%emt 0:01:26]} 27. Ng4 {[%emt 0:01:30]} Bh4 {[%emt 0:00:49]} 28. Rd1 {[%emt 0:01:16]} b5 {[%emt 0:01:15]} 29. a5 {[%emt 0:01:03]} h5 {[%emt 0:01:40]} 30. Nh2 {[%emt 0:00:47]} Ne7 {[%emt 0:06:41]} 31. Qxd3 {[%emt 0:03:10]} Qxd3 {[%emt 0:01:00]} 32. Rxd3 {[%emt 0:00:12]} Nf5 33. Nf3 Be7 {[%emt 0:01:00]} 34. Bg5 {[%emt 0:02:02]} Bf8 {[%emt 0:02:15]} 35. Nd2 {[%emt 0:02:49]} Rc8 36. g3 {[%emt 0:00:30]} Kf7 {[%emt 0:03:37]} 37. Kg2 {[%emt 0:01:21]} Kg6 {[%emt 0:00:08]} 38. Nf3 {[%emt 0:00:21]} Rc7 {[%emt 0:02:40]} 39. g4 {[%emt 0:00:41]} hxg4 {[%emt 0:01:48]} 40. hxg4 {[%emt 0:00:13]} Nh6 {[%emt 0:00:05]} 41. Bxh6 {[%emt 0:31:48]} Kxh6 {[%emt 0:30:02]} 42. Nd2 {[%emt 0:00:51]} Kg6 {[%emt 0:01:42]} 43. Kg3 {[%emt 0:00:00]} Be7 {[%emt 0:00:00]} 44. Rf3 {[%emt 0:00:00]} Rc8 {[%emt 0:00:00]} 45. Nb3 {[%emt 0:00:00]} Rh8 {[%emt 0:00:00]} 46. Rf1 {[%emt 0:00:00]} Rc8 {[%emt 0:00:00]} 47. Rf3 {[%emt 0:00:00]} Rh8 {[%emt 0:00:00]} 48. Nc1 {[%emt 0:00:00]} Bh4+ {[%emt 0:00:00]} 49. Kg2 {[%emt 0:00:00]} Rc8 {[%emt 0:00:00]} 50. Nd3 {[%emt 0:00:00]} Bg5 {[%emt 0:00:00]} 51. Nc5 {[%emt 0:00:00]} Rc6 {[%emt 0:00:00]} 52. Kf2 {[%emt 0:00:00]} Be7 {[%emt 0:00:00]} 53. Nb3 {[%emt 0:00:00]} Rc8 {[%emt 0:00:00]} 54. Kg2 {[%emt 0:00:00]} Kh7 {[%emt 0:00:00]} 55. Nc1 {[%emt 0:00:00]} Bxb4 {[%emt 0:00:00]} 56. cxb4 {[%emt 0:03:25]} Rxc1 {[%emt 0:00:00]} 57. Rf7 {[%emt 0:00:13]} Rc4 {[%emt 0:00:00]} 58. Ra7 {[%emt 0:00:30]} Rxd4 {[%emt 0:00:00]} 59. Rxa6 {[%emt 0:01:22]} Rxg4+ {[%emt 0:00:00]} 60. Kf3 {[%emt 0:00:21]} Rxb4 {[%emt 0:00:00]} 61. Rxe6 {[%emt 0:00:10]} Ra4 {[%emt 0:00:00]} 62. a6 {[%emt 0:01:11]} Kg8 {[%emt 0:00:00]} 63. Rb6 {[%emt 0:01:21]} Kf7 {[%emt 0:00:00]} 64. Rd6 {[%emt 0:01:34]} d4 {[%emt 0:00:00]} 65. Ke4 {[%emt 0:00:37]} Ke7 {[%emt 0:00:00]} 66. Rg6 {[%emt 0:01:14]} Kf7 {[%emt 0:00:00]} 67. Rb6 {[%emt 0:00:27]} Ke7 {[%emt 0:00:00]} 68. Rd6 {[%emt 0:00:49]} Kf7 {[%emt 0:10:14]} 69. Kf5 {[%emt 0:00:35]} d3 {[%emt 0:01:45]} 70. e6+ {[%emt 0:00:37]} Ke8 {[%emt 0:00:08]} 71. Rxd3 {[%emt 0:00:34]} Rxa6 {[%emt 0:00:05]} 72. Rc3 {[%emt 0:00:27]} Ra1 {[%emt 0:07:55]} 73. Rc8+ {[%emt 0:00:19]} Ke7 {[%emt 0:00:03]} 74. Rc7+ {[%emt 0:00:19]} Ke8 {[%emt 0:00:34]} 75. Rxg7 {[%emt 0:00:35]} Rf1+ {[%emt 0:00:08]} 76. Ke5 {[%emt 0:00:12]} Re1+ {[%emt 0:00:04]} 77. Kd6 {[%emt 0:00:10]} Rd1+ {[%emt 0:00:03]} 78. Kc5 {[%emt 0:00:12]} Re1 {[%emt 0:00:05]} 79. Kxb5 {[%emt 0:00:45]} 1/2-1/2

[Event "SVK-ch Open 2018"]
[Site "Banska Stiavnica"]
[Date "2018.07.15"]
[Round "9"]
[White "Hyll, Jan"]
[Black "Brozyna, Mateusz"]
[Result "1-0"]
[ECO "A48"]
[WhiteElo "1915"]
[BlackElo "2098"]
[Annotator "NA"]
[PlyCount "99"]
[EventDate "2018.07.07"]
[EventType "swiss"]
[EventCountry "SVK"]
[SourceTitle "playchess.com"]
[Source "ChessBase"]
[SourceQuality "1"]
[TimeControl "40/5400+30:1800+30"]

1. Nf3 {[%emt 0:00:00]} Nf6 {[%emt 0:00:00]} 2. d4 {[%emt 0:00:00]} g6 {[%emt 0:00:00]} 3. e3 {[%emt 0:00:00]} Bg7 {[%emt 0:00:00]} 4. Bd3 {[%emt 0:00:00]} O-O {[%emt 0:00:02]} 5. O-O {[%emt 0:00:00]} d6 {[%emt 0:00:31]} 6. h3 {[%emt 0:00:09]} c5 {[%emt 0:00:27]} 7. c3 {[%emt 0:00:01]} Nbd7 {[%emt 0:00:15]} 8. Nbd2 {[%emt 0:00:29]} b6 {[%emt 0:01:02]} 9. Qe2 {[%emt 0:00:06]} e5 {[%emt 0:01:16]} 10. dxe5 {[%emt 0:02:37]} dxe5 {[%emt 0:00:17]} 11. e4 {[%emt 0:01:15]} Qc7 {[%emt 0:00:50]} 12. Re1 {[%emt 0:01:05]} a6 {[%emt 0:00:22]} 13. Nf1 {[%emt 0:00:52]} Bb7 {[%emt 0:00:26]} 14. Bg5 {[%emt 0:01:37]} h6 {[%emt 0:01:25]} 15. Bd2 {[%emt 0:02:05]} Rfe8 {[%emt 0:00:59]} 16. c4 {[%emt 0:01:09]} Nf8 {[%emt 0:00:24]} 17. Bc3 {[%emt 0:00:07]} Nh5 {[%emt 0:01:36]} 18. Ne3 {[%emt 0:01:52]} Nf4 {[%emt 0:09:44]} 19. Qc2 {[%emt 0:00:57]} Nxd3 {[%emt 0:19:09]} 20. Qxd3 {[%emt 0:00:06]} Bc6 {[%emt 0:07:07]} 21. Nd5 {[%emt 0:03:55]} Qb8 {[%emt 0:00:09]} 22. Re2 {[%emt 0:03:56]} Ne6 {[%emt 0:04:27]} 23. g3 {[%emt 0:02:24]} Ra7 {[%emt 0:07:01]} 24. Rae1 {[%emt 0:05:25]} Rb7 {[%emt 0:03:45]} 25. Nh2 {[%emt 0:03:10]} b5 {[%emt 0:06:38]} 26. b3 {[%emt 0:00:20]} h5 {[%emt 0:01:27]} 27. Nf3 {[%emt 0:03:14]} a5 {[%emt 0:02:49]} 28. h4 {[%emt 0:09:13]} a4 {[%emt 0:03:10]} 29. Ng5 {[%emt 0:00:50]} axb3 {[%emt 0:01:15]} 30. axb3 {[%emt 0:00:12]} bxc4 {[%emt 0:00:49]} 31. bxc4 {[%emt 0:00:10]} Rb3 {[%emt 0:09:03]} 32. Ra2 {[%emt 0:02:52]} Nd4 {[%emt 0:01:01]} 33. Rea1 {[%emt 0:00:56]} Qd8 {[%emt 0:02:33]} 34. Ra3 {[%emt 0:07:41]} Rb7 {[%emt 0:04:47]} 35. Ra7 {[%emt 0:02:23]} Bh6 {[%emt 0:04:12]} 36. Rxb7 {[%emt 0:03:23]} Bxb7 {[%emt 0:00:18]} 37. Ba5 {[%emt 0:01:01]} Qd6 {[%emt 0:03:09]} 38. Bc7 {[%emt 0:11:03]} Qc6 {[%emt 0:00:02]} 39. Rb1 {[%emt 0:04:12]} Ba6 {[%emt 0:03:51]} 40. Rb6 {[%emt 0:03:51]} Qa4 {[%emt 0:00:53]} 41. Nf6+ {[%emt 0:30:40]} Kf8 {[%emt 0:30:42]} 42. Bd6+ {[%emt 0:00:40]} Kg7 {[%emt 0:01:25]} 43. Nxe8+ {[%emt 0:00:14]} Qxe8 {[%emt 0:00:26]} 44. Rxa6 {[%emt 0:00:09]} Qc8 {[%emt 0:00:13]} 45. Bxe5+ {[%emt 0:04:12]} Kg8 {[%emt 0:00:21]} 46. Rb6 {[%emt 0:01:32]} Bf8 {[%emt 0:00:25]} 47. Rb8 {[%emt 0:03:03]} Qg4 {[%emt 0:00:10]} 48. Bd6 {[%emt 0:01:41]} Kg7 {[%emt 0:01:03]} 49. Bxf8+ {[%emt 0:01:29]} Kf6 {[%emt 0:00:09]} 50. Rb6+ {[%emt 0:01:01]} 1-0

[Event "SVK-ch Open 2018"]
[Site "Banska Stiavnica"]
[Date "2018.07.15"]
[Round "9"]
[White "Marsina, Stefan"]
[Black "Tepper, Frantisek"]
[Result "1/2-1/2"]
[ECO "C01"]
[WhiteElo "1908"]
[BlackElo "2050"]
[Annotator "NA"]
[PlyCount "31"]
[EventDate "2018.07.07"]
[EventType "swiss"]
[EventCountry "SVK"]
[SourceTitle "playchess.com"]
[Source "ChessBase"]
[SourceQuality "1"]
[TimeControl "40/5400+30:1800+30"]

1. e4 {[%emt 0:02:44]} e6 {[%emt 0:00:00]} 2. d4 {[%emt 0:01:04]} d5 {[%emt 0:00:00]} 3. exd5 {[%emt 0:00:06]} exd5 {[%emt 0:00:00]} 4. Bd3 {[%emt 0:00:07]} Bd6 {[%emt 0:00:00]} 5. Ne2 {[%emt 0:00:33]} Nf6 {[%emt 0:00:30]} 6. O-O {[%emt 0:01:14]} Bg4 {[%emt 0:00:15]} 7. h3 {[%emt 0:02:42]} Bh5 {[%emt 0:00:28]} 8. c3 {[%emt 0:00:46]} c6 {[%emt 0:00:17]} 9. Bg5 {[%emt 0:01:30]} Nbd7 {[%emt 0:00:17]} 10. Re1 {[%emt 0:02:35]} O-O {[%emt 0:00:07]} 11. g4 {[%emt 0:01:05]} Bg6 {[%emt 0:00:01]} 12. Bxg6 hxg6 13. Qc1 Qc7 14. Nd2 Rfe8 15. Nf3 Ne4 16. Kg2 1/2-1/2

[Event "SVK-ch Open 2018"]
[Site "Banska Stiavnica"]
[Date "2018.07.15"]
[Round "9"]
[White "Pereszlenyi, Gejza"]
[Black "Gyerpal, Adrian"]
[Result "0-1"]
[ECO "B24"]
[WhiteElo "1899"]
[BlackElo "1990"]
[Annotator "NA"]
[PlyCount "69"]
[EventDate "2018.07.07"]
[EventType "swiss"]
[EventCountry "SVK"]
[SourceTitle "playchess.com"]
[Source "ChessBase"]
[SourceQuality "1"]
[TimeControl "40/5400+30:1800+30"]

1. e4 {[%emt 0:00:00]} c5 {[%emt 0:00:00]} 2. Nc3 {[%emt 0:00:03]} Nc6 {[%emt 0:00:09]} 3. g3 {[%emt 0:00:10]} g6 {[%emt 0:00:59]} 4. Bg2 {[%emt 0:00:08]} Bg7 {[%emt 0:00:45]} 5. Nge2 {[%emt 0:00:10]} e6 {[%emt 0:02:03]} 6. d3 {[%emt 0:01:21]} Nge7 {[%emt 0:01:19]} 7. O-O {[%emt 0:00:45]} O-O {[%emt 0:02:00]} 8. Be3 {[%emt 0:01:10]} Nd4 {[%emt 0:02:49]} 9. Qd2 {[%emt 0:01:59]} Nec6 {[%emt 0:02:18]} 10. f4 {[%emt 0:05:54]} d6 {[%emt 0:02:12]} 11. h3 {[%emt 0:02:55]} Rb8 {[%emt 0:05:16]} 12. a4 {[%emt 0:05:51]} a6 {[%emt 0:01:23]} 13. Kh2 {[%emt 0:07:11]} Bd7 {[%emt 0:04:35]} 14. Bg1 {[%emt 0:02:19]} b5 {[%emt 0:04:17]} 15. axb5 {[%emt 0:01:09]} axb5 {[%emt 0:03:15]} 16. Nxd4 {[%emt 0:25:54]} Nxd4 {[%emt 0:03:31]} 17. b3 {[%emt 0:01:02]} Qc7 {[%emt 0:09:30]} 18. Ra2 {[%emt 0:02:22]} Bc6 {[%emt 0:07:07]} 19. Rfa1 {[%emt 0:01:38]} b4 {[%emt 0:03:02]} 20. Nd1 {[%emt 0:07:20]} Nb5 {[%emt 0:01:34]} 21. Rc1 {[%emt 0:01:50]} Ra8 {[%emt 0:01:27]} 22. Rxa8 {[%emt 0:00:35]} Rxa8 {[%emt 0:00:22]} 23. Ne3 {[%emt 0:00:47]} Ra2 {[%emt 0:04:37]} 24. Qd1 {[%emt 0:09:59]} Bb2 {[%emt 0:03:54]} 25. Nc4 {[%emt 0:01:20]} Bxc1 {[%emt 0:01:18]} 26. Qxc1 {[%emt 0:00:13]} f5 {[%emt 0:03:07]} 27. h4 {[%emt 0:07:48]} d5 {[%emt 0:05:56]} 28. Ne5 {[%emt 0:04:46]} Bb7 {[%emt 0:03:37]} 29. exf5 {[%emt 0:01:38]} exf5 {[%emt 0:00:32]} 30. Kh3 {[%emt 0:00:32]} d4 {[%emt 0:05:00]} 31. Nf3 {[%emt 0:04:27]} Na3 {[%emt 0:02:57]} 32. Qe1 {[%emt 0:01:06]} Rxc2 {[%emt 0:02:32]} 33. Qe6+ {[%emt 0:01:32]} Kg7 {[%emt 0:00:10]} 34. h5 {[%emt 0:00:16]} gxh5 {[%emt 0:05:54]} 35. Qxf5 0-1

[Event "SVK-ch Open 2018"]
[Site "Banska Stiavnica"]
[Date "2018.07.15"]
[Round "9"]
[White "Rabovszky, Gyorgy"]
[Black "Sosovicka, Jakub"]
[Result "0-1"]
[ECO "B23"]
[WhiteElo "1807"]
[BlackElo "2078"]
[Annotator "NA"]
[PlyCount "40"]
[EventDate "2018.07.07"]
[EventType "swiss"]
[EventCountry "SVK"]
[SourceTitle "playchess.com"]
[Source "ChessBase"]
[SourceQuality "1"]
[TimeControl "40/5400+30:1800+30"]

1. e4 {[%emt 0:01:07]} c5 {[%emt 0:00:00]} 2. Nc3 {[%emt 0:00:39]} Nc6 {[%emt 0:00:10]} 3. f4 {[%emt 0:00:16]} e6 {[%emt 0:00:36]} 4. Bc4 {[%emt 0:00:07]} Nge7 {[%emt 0:00:26]} 5. Nf3 {[%emt 0:00:38]} d5 {[%emt 0:01:56]} 6. exd5 {[%emt 0:00:24]} exd5 {[%emt 0:00:54]} 7. Be2 {[%emt 0:00:50]} g6 {[%emt 0:03:02]} 8. d4 {[%emt 0:00:31]} c4 {[%emt 0:11:29]} 9. Be3 {[%emt 0:09:14]} Bg7 {[%emt 0:02:35]} 10. Qd2 {[%emt 0:01:41]} O-O {[%emt 0:03:05]} 11. O-O-O {[%emt 0:01:13]} a6 {[%emt 0:04:48]} 12. h4 {[%emt 0:05:26]} b5 {[%emt 0:06:33]} 13. h5 {[%emt 0:00:53]} b4 {[%emt 0:03:31]} 14. Nb1 {[%emt 0:00:25]} Qa5 {[%emt 0:08:05]} 15. c3 {[%emt 0:08:04]} Qxa2 {[%emt 0:02:36]} 16. Nh4 {[%emt 0:04:56]} Na5 {[%emt 0:07:44]} 17. Qe1 {[%emt 0:03:28]} Nf5 {[%emt 0:05:01]} 18. Bf3 {[%emt 0:04:39]} Nxh4 {[%emt 0:02:11]} 19. Qxh4 {[%emt 0:01:18]} Nb3+ {[%emt 0:00:25]} 20. Kc2 {[%emt 0:00:26]} Bf5+ {[%emt 0:00:11]} 0-1

[Event "SVK-ch Open 2018"]
[Site "Banska Stiavnica"]
[Date "2018.07.15"]
[Round "9"]
[White "Hagara, Eduard"]
[Black "Sandor, Martin"]
[Result "0-1"]
[ECO "A01"]
[WhiteElo "1758"]
[BlackElo "1968"]
[Annotator "NA"]
[PlyCount "38"]
[EventDate "2018.07.07"]
[EventType "swiss"]
[EventCountry "SVK"]
[SourceTitle "playchess.com"]
[Source "ChessBase"]
[SourceQuality "1"]
[TimeControl "40/5400+30:1800+30"]

1. b3 {[%emt 0:00:00]} e5 {[%emt 0:00:00]} 2. Bb2 {[%emt 0:00:00]} Nc6 {[%emt 0:00:00]} 3. e3 {[%emt 0:00:17]} Nf6 {[%emt 0:00:07]} 4. c4 {[%emt 0:00:47]} Be7 {[%emt 0:02:01]} 5. Nc3 {[%emt 0:01:52]} O-O {[%emt 0:03:30]} 6. Bd3 {[%emt 0:00:31]} d5 {[%emt 0:00:45]} 7. Bb1 {[%emt 0:07:39]} Be6 {[%emt 0:06:52]} 8. cxd5 {[%emt 0:03:41]} Nxd5 {[%emt 0:01:14]} 9. Nf3 {[%emt 0:00:22]} Bf6 {[%emt 0:02:57]} 10. Ne4 {[%emt 0:04:45]} Bg4 {[%emt 0:10:36]} 11. Nxf6+ {[%emt 0:06:54]} Qxf6 {[%emt 0:01:13]} 12. Be4 {[%emt 0:01:43]} Nde7 {[%emt 0:03:00]} 13. Qc2 {[%emt 0:12:51]} Bf5 {[%emt 0:03:34]} 14. h3 {[%emt 0:04:00]} Qg6 {[%emt 0:07:47]} 15. Bxf5 {[%emt 0:10:41]} Nxf5 {[%emt 0:00:27]} 16. g4 {[%emt 0:00:29]} Nh4 {[%emt 0:02:38]} 17. Qxg6 {[%emt 0:01:49]} Nxf3+ {[%emt 0:00:06]} 18. Ke2 fxg6 19. h4 {[%emt 0:01:01]} e4 {[%emt 0:00:50]} 0-1